bitfinex-derivatives/quotes_SOLF0:USTF0_20250911
["timestamp","ask_amount","ask_price","bid_price","bid_amount"]
[1757555376129,6.97,225.24,225.1,9.01349082]
[1757555376336,6.97,225.22,225.1,9.01349082]
[1757555376536,6.97,225.24,225.1,9.01349082]
[1757555376732,6.97,225.22,225.1,9.01349082]
[1757555377032,29.06628209,225.25,225.1,9.01349082]
[1757555377336,40.51904128,225.24,225.1,9.01349082]
[1757555377531,2.72628209,225.22,225.1,9.01349082]
[1757555378037,6.97,225.21,225.1,9.01349082]
[1757555378732,2.72628209,225.22,225.1,9.01349082]
[1757555378937,6.97,225.21,225.1,9.01349082]
[1757555379235,2.72628209,225.22,225.1,9.01349082]
[1757555379437,6.97,225.21,225.1,9.01349082]
[1757555379934,2.72628209,225.19,225.1,2.04349082]
[1757555380236,6.97,225.18,225.1,2.04349082]
[1757555380833,6.97,225.15,225.1,2.04349082]
[1757555381033,2.72628209,225.16,225.1,2.04349082]
[1757555382138,6.97,225.15,225.1,2.04349082]
[1757555382335,1.7507454,225.12,225.1,2.04349082]
[1757555382536,8.7207454,225.12,225.1,2.04349082]
[1757555383833,6.97,225.11,225.1,2.04349082]
[1757555385736,7.41,225.11,225.1,2.04349082]
[1757555385930,14.47262944,225.11,224.97,6.97]
[1757555386133,1.7507454,225.04,224.97,6.97]
[1757555387038,6.97,225.05,224.98,6.97]
[1757555387339,160.47381054,225.12,225.02,6.97]
[1757555387340,1.7507454,225.1,225.02,6.97]
[1757555388237,6.97,225.09,225.02,6.97]
[1757555389040,6.97,225.14,225.07,1.7507454]
[1757555389342,7.05507932,225.13,225.07,1.7507454]
[1757555389536,3.74782286,225.12,225.08,6.97]
[1757555389738,6.97,225.14,225.08,6.97]
[1757555389936,14.0259771,225.13,225.08,6.97]
[1757555390139,10.71830643,225.12,225.08,6.97]
[1757555390337,6.97,225.12,225.08,6.97]
[1757555390735,6.97,225.14,225.08,6.97]
[1757555390940,6.97,225.12,225.08,6.97]
[1757555392240,6.97,225.14,225.08,6.97]
[1757555392436,7.05828948,225.13,225.08,6.97]
[1757555392743,3.74940378,225.12,225.06,1.7507454]
[1757555392939,6.97,225.14,225.06,1.7507454]
[1757555393139,7.05807859,225.13,225.06,1.7507454]
[1757555393338,7.05807859,225.12,225.06,1.7507454]
[1757555393542,6.97,225.14,225.06,1.7507454]
[1757555393736,6.97,225.12,225.06,1.7507454]
[1757555395541,6.97,225.12,225.09,6.97]
[1757555397638,4.89939163,225.21,225.08,1.7507454]
[1757555397844,18.48263518,225.18,225.12,1.7507454]
[1757555398045,7.58,225.16,225.12,8.8007454]
[1757555398441,3.75796294,225.15,225.12,8.8007454]
[1757555398642,7.58,225.16,225.12,8.8007454]
[1757555398841,7.07405267,225.15,225.12,8.8007454]
[1757555399042,7.58,225.16,225.12,8.8007454]
[1757555399342,7.07387347,225.15,225.13,7.05]
[1757555399541,306.02,225.19,225.12,8.8007454]
[1757555399741,7.07849673,225.18,225.12,8.8007454]
[1757555399937,7.07849673,225.17,225.12,1.7507454]
[1757555400143,7.07849673,225.16,225.13,7.05]
[1757555400438,14.66061439,225.15,225.12,1.7507454]
[1757555400642,7.58,225.15,225.12,8.8007454]
[1757555400842,1.7507454,225.21,225.13,7.05]
[1757555401038,7.58,225.19,225.1,1.7507454]
[1757555401240,10.92331122,225.18,225.12,1.7507454]
[1757555401445,7.58,225.16,225.12,8.8007454]
[1757555401643,7.08246176,225.15,225.12,8.8007454]
[1757555401840,7.08246176,225.14,225.12,8.8007454]
[1757555402041,7.58,225.16,225.12,8.8007454]
[1757555402243,7.0861165,225.15,225.12,8.8007454]
[1757555402445,7.0861165,225.14,225.12,8.8007454]
[1757555402743,7.58,225.16,225.12,8.8007454]
[1757555402945,7.09222748,225.15,225.12,8.8007454]
[1757555403145,7.09222748,225.14,225.12,8.8007454]
[1757555403346,7.58,225.16,225.12,8.8007454]
[1757555403546,7.09950142,225.15,225.12,8.8007454]
[1757555403746,7.09950142,225.14,225.12,8.8007454]
[1757555404047,1.7507454,225.21,225.12,8.8007454]
[1757555404247,10.94745707,225.2,225.15,7.05]
[1757555404445,10.94745707,225.19,225.17,7.05]
[1757555404743,7.58,225.17,225.1,1.7507454]
[1757555404946,10.9611375,225.16,225.08,7.05]
[1757555405141,18.54074223,225.15,225.08,8.8007454]
[1757555405341,10.96599048,225.14,225.08,8.8007454]
[1757555405542,14.67809394,225.13,225.09,7.05]
[1757555405847,3.32732387,225.12,225.09,7.05]
[1757555406047,3.32732387,225.11,225.09,7.05]
[1757555406347,3.32509119,225.1,225.09,7.05]
[1757555413043,4.89939163,225.19,225.09,7.05]
[1757555413349,3.66226443,225.18,225.15,8.8007454]
[1757555413543,7.58,225.2,225.15,1.7507454]
[1757555413845,3.55766433,225.19,225.15,1.7507454]
[1757555414054,11.13766433,225.18,225.15,1.7507454]
[1757555414252,7.58,225.18,225.15,1.7507454]
[1757555415251,7.58,225.18,225.15,8.8007454]
[1757555415551,7.58,225.22,225.15,1.7507454]
[1757555415748,3.5580625,225.21,225.15,1.7507454]
[1757555415946,7.58,225.19,224.98,7.05]
[1757555416146,7.58,225.17,225.11,1.7507454]
[1757555416453,3.5580625,225.16,225.11,1.7507454]
[1757555416643,1.7507454,225.2,225.07,7.05]
[1757555416644,7.58,225.19,225.1,1.7507454]
[1757555416846,7.58,225.17,225.1,1.7507454]
[1757555417051,3.5578835,225.16,225.1,1.7507454]
[1757555417352,7.58,225.17,225.1,1.7507454]
[1757555419654,7.58,225.17,225.07,7.05]
[1757555419854,7.58,225.17,225.1,1.7507454]
[1757555425060,3.27419654,225.16,225.1,1.7507454]
[1757555425261,7.58,225.14,225.1,8.8007454]
[1757555425758,7.58,225.14,225.11,7.05]
[1757555426959,7.58,225.14,225.1,1.7507454]
[1757555426960,12.13939163,225.22,225.13,1.7507454]
[1757555427159,7.47019781,225.25,225.15,1.7507454]
[1757555427160,14.08140196,225.21,225.15,1.7507454]
[1757555427358,3.27629848,225.2,225.17,8.6107454]
[1757555427554,3.27629848,225.19,225.17,8.6107454]
[1757555427754,7.24,225.21,225.17,8.6107454]
[1757555427959,10.51545557,225.2,225.17,8.6107454]
[1757555428153,3.27545557,225.19,225.17,8.6107454]
[1757555428355,7.24,225.21,224.97,308.42986222]
[1757555428554,1.7507454,225.18,224.99,6.86]
[1757555428760,10.51493046,225.17,225.09,1.7507454]
[1757555428964,3.27493046,225.16,225.09,1.7507454]
[1757555429163,7.24,225.17,225.09,1.7507454]
[1757555429462,3.27465525,225.16,225.09,1.7507454]
[1757555429657,7.24,225.17,225.09,1.7507454]
[1757555429858,3.27465525,225.16,225.09,1.7507454]
[1757555430064,7.24,225.17,225.09,1.7507454]
[1757555430264,3.27465443,225.16,225.09,1.7507454]
[1757555430462,7.24,225.17,225.09,1.7507454]
[1757555430658,3.27462833,225.16,225.09,1.7507454]
[1757555430860,7.24,225.17,225.09,1.7507454]
[1757555431056,3.27462833,225.16,225.09,1.7507454]
[1757555431256,3.27586096,225.15,225.09,1.7507454]
[1757555431457,7.24,225.17,225.09,1.7507454]
[1757555431660,3.27477405,225.16,225.09,1.7507454]
[1757555431862,3.27477405,225.15,225.09,1.7507454]
[1757555432061,7.24,225.17,225.09,1.7507454]
[1757555432262,3.27455965,225.16,225.09,1.7507454]
[1757555432463,3.27455965,225.15,225.09,1.7507454]
[1757555432661,7.24,225.17,225.09,1.7507454]
[1757555432963,3.27595718,225.16,225.09,1.7507454]
[1757555433158,3.27595718,225.15,225.08,6.86]
[1757555433462,7.24,225.17,225.1,1.7507454]
[1757555433663,3.27680245,225.16,225.1,1.7507454]
[1757555433863,7.24,225.14,225.1,8.6107454]
[1757555434062,1.7507454,225.18,225.1,8.6107454]
[1757555434269,10.51680022,225.17,225.1,1.7507454]
[1757555434458,7.24,225.15,225.1,1.7507454]
[1757555434662,7.24,225.13,225.1,1.7507454]
[1757555435066,7.24,225.13,225.1,8.6107454]
[1757555437165,3.2766594,225.12,225.06,1.7507454]
[1757555437467,7.24,225.13,225.06,8.6107454]
[1757555437667,3.27699021,225.12,225.06,8.6107454]
[1757555437867,7.24,225.13,225.07,1.7507454]
[1757555438167,7.24,225.11,225.07,8.6107454]
[1757555440764,7.24,225.11,225.07,1.7507454]
[1757555440968,7.24,225.11,225.08,6.86]
[1757555442867,7.24,225.18,225.1,1.7507454]
[1757555443067,10.88642264,225.17,225.13,1.7507454]
[1757555443269,18.12642264,225.16,225.13,1.7507454]
[1757555443473,14.31306447,225.15,225.13,1.7507454]
[1757555443668,7.07306447,225.14,225.13,1.7507454]
[1757555444365,7.07306447,225.14,225.1,6.86]
[1757555444563,7.07306447,225.13,225.1,6.86]
[1757555444766,7.24,225.15,225.09,2.73339799]
[1757555444767,7.24,225.15,225.09,9.59339799]
[1757555445074,14.31252592,225.14,225.1,6.86]
[1757555445279,3.29323678,225.13,225.1,6.86]
[1757555445474,3.29312708,225.12,225.01,20.56]
[1757555445680,3.29305023,225.11,225.05,6.86]
[1757555445979,7.24,225.12,225.05,6.86]
[1757555446181,3.29305137,225.11,225.05,6.86]
[1757555446479,7.24,225.12,225.05,6.86]
[1757555446680,3.29294743,225.11,225.05,6.86]
[1757555446881,7.24,225.12,225.05,6.86]
[1757555447081,3.29294743,225.11,225.05,6.86]
[1757555447282,7.24,225.12,225.05,6.86]
[1757555447479,7.24,225.19,225.05,6.86]
[1757555447681,7.24,225.17,225.05,6.86]
[1757555447982,7.24,225.15,225.05,6.86]
[1757555448180,10.88424062,225.14,225.05,6.86]
[1757555448376,10.88424062,225.13,225.05,6.86]
[1757555448573,18.12424062,225.12,225.05,6.86]
[1757555448774,10.88424062,225.11,225.05,6.86]
[1757555448979,3.2928528,225.1,225.05,6.86]
[1757555449289,7.24,225.17,225.05,6.86]
[1757555449586,7.24,225.15,225.05,6.86]
[1757555449784,7.24,225.13,225.05,6.86]
[1757555449975,7.24,225.11,225.05,6.86]
[1757555450180,7.24,225.09,225.05,6.86]
[1757555450381,7.24,225.17,225.05,6.86]
[1757555450582,7.24,225.15,225.05,6.86]
[1757555450783,7.24,225.13,225.05,6.86]
[1757555450983,11.21660124,225.12,225.05,6.86]
[1757555451183,11.21660124,225.11,225.05,6.86]
[1757555451486,7.24,225.13,225.04,6.86]
[1757555451487,3.29230442,225.1,225.04,6.86]
[1757555451676,7.24,225.13,224.99,19.7]
[1757555451677,7.24,225.13,225.07,6.86]
[1757555451881,11.21163787,225.12,225.07,6.86]
[1757555452079,7.24,225.13,225.07,6.86]
[1757555452286,11.20903157,225.12,225.06,2.73339799]
[1757555452486,7.24,225.13,225.06,9.59339799]
[1757555452686,11.20971406,225.12,225.06,9.59339799]
[1757555452887,7.24,225.13,225.06,9.59339799]
[1757555453090,11.2097103,225.12,225.06,9.59339799]
[1757555453289,7.24,225.13,225.06,9.59339799]
[1757555453590,11.21083314,225.12,225.06,9.59339799]
[1757555453787,7.24,225.13,225.06,9.59339799]
[1757555453988,11.21224152,225.12,225.06,9.59339799]
[1757555454289,7.24,225.13,225.06,9.59339799]
[1757555454589,11.2121191,225.12,225.06,9.59339799]
[1757555454783,7.24,225.13,225.06,9.59339799]
[1757555454984,11.21260155,225.12,225.06,6.86]
[1757555455288,7.24,225.13,225.06,6.86]
[1757555455490,11.21248345,225.12,225.06,6.86]
[1757555455689,7.43542914,225.11,225.04,6.86]
[1757555455892,7.24,225.13,225.04,6.86]
[1757555456190,7.06773165,225.12,225.04,6.86]
[1757555456391,3.29102134,225.11,225.04,6.86]
[1757555456689,7.24,225.13,225.04,6.86]
[1757555456992,7.06750306,225.12,225.04,6.86]
[1757555457188,3.29091628,225.11,225.04,6.86]
[1757555457390,7.24,225.13,225.04,6.86]
[1757555457590,7.06728856,225.12,225.04,6.86]
[1757555457789,3.29081773,225.11,225.04,6.86]
[1757555457994,7.49,225.18,225.04,6.86]
[1757555458186,7.49,225.1,225.04,6.86]
[1757555458393,7.49,225.08,225.0,6.84]
[1757555458691,7.06660831,225.07,225.0,6.84]
[1757555458893,14.55642289,225.06,225.0,6.84]
[1757555459093,7.49,225.04,225.0,6.84]
[1757555459289,7.49,225.04,224.97,6.84]
[1757555462296,7.63278962,225.13,224.97,6.84]
[1757555462498,7.49,225.11,224.97,6.84]
[1757555462687,7.49,225.09,224.97,6.84]
[1757555462890,11.22456829,225.08,224.97,6.84]
[1757555463092,3.34930206,225.07,225.0,6.84]
[1757555463292,3.34930206,225.06,225.0,6.84]
[1757555463495,7.49,225.09,225.0,6.84]
[1757555463797,11.22271674,225.08,225.0,6.84]
[1757555464097,3.34882752,225.07,225.0,6.84]
[1757555464299,7.49,225.09,225.0,6.84]
[1757555464496,7.49,225.07,225.0,6.84]
[1757555464690,7.49,225.05,225.0,6.84]
[1757555464891,7.49,225.11,225.0,6.84]
[1757555465088,7.49,225.09,225.0,6.84]
[1757555465291,7.49,225.07,225.0,6.84]
[1757555465500,3.34763713,225.06,225.0,6.84]
[1757555465698,7.49,225.07,225.0,6.84]
[1757555473201,3.34775693,225.06,225.0,6.84]
[1757555473506,7.49,225.07,225.0,6.84]
[1757555474604,3.34760055,225.06,225.0,6.84]
[1757555474805,7.49,225.12,225.0,6.84]
[1757555475006,7.49,225.1,225.0,6.84]
[1757555475205,7.49,225.08,225.0,6.84]
[1757555475405,7.49,225.06,225.0,6.84]
[1757555475608,7.49,225.04,224.96,6.84]
[1757555477513,7.49,225.04,224.96,9.57339799]
[1757555477711,7.49,225.04,224.97,6.84]
[1757555481414,7.49,225.04,224.99,2.73339799]
[1757555481912,7.49,225.12,225.0,6.84]
[1757555482107,7.49,225.1,224.96,6.84]
[1757555482313,10.22339799,225.07,224.92,6.84]
[1757555482509,7.49,225.05,224.92,6.84]
[1757555482711,7.49,225.03,224.92,6.84]
[1757555482907,7.49,225.01,224.92,6.84]
[1757555484410,7.49,225.01,224.93,2.73339799]
[1757555487811,7.49,225.01,224.92,6.84]
[1757555488116,2.73339799,225.07,224.92,6.84]
[1757555488117,6.9,224.99,224.92,6.84]
[1757555493217,6.9,224.99,224.92,9.57339799]
[1757555495121,6.9,224.99,224.93,7.01]
[1757555499424,6.9,225.05,224.96,7.01]
[1757555499625,3.34066634,225.04,224.96,7.01]
[1757555499929,10.24066634,225.03,224.96,7.01]
[1757555500222,6.9,225.03,224.96,7.01]
[1757555502429,3.34409098,225.02,224.96,7.01]
[1757555502731,6.9,225.03,224.96,7.01]
[1757555502930,3.34594525,225.02,224.96,7.01]
[1757555503230,6.9,225.03,224.96,7.01]
[1757555503528,3.34754095,225.02,224.96,7.01]
[1757555503729,6.9,225.03,224.96,7.01]
[1757555503929,3.3475458,225.02,224.96,7.01]
[1757555504130,6.9,225.03,224.96,7.01]
[1757555504332,6.9,225.01,224.99,1.7515474]
[1757555509135,6.9,225.01,224.99,8.7615474]
[1757555513135,6.9,225.01,225.0,1.7515474]
[1757555513332,6.9,225.1,225.0,8.7615474]
[1757555513634,154.80379137,225.15,224.99,7.01]
[1757555513635,3.34733265,225.09,224.99,7.01]
[1757555513828,6.9,225.11,224.99,7.01]
[1757555514030,3.3479212,225.1,224.99,7.01]
[1757555514231,6.9,225.11,224.99,7.01]
[1757555514431,3.34724002,225.1,224.99,7.01]
[1757555514627,6.9,225.11,225.09,1.7515474]
[1757555514832,10.24736228,225.1,225.09,1.7515474]
[1757555516735,6.9,225.1,225.09,1.7515474]
[1757555521649,153.05224397,225.15,225.05,7.01]
[1757555521843,6.86,225.13,224.92,6.87]
[1757555522041,6.86,225.11,225.06,1.7515474]
[1757555522344,6.86,225.09,225.06,1.7515474]
[1757555522543,6.86,225.14,225.06,1.7515474]
[1757555522746,6.86,225.12,225.06,1.7515474]
[1757555523047,3.34224976,225.11,225.06,1.7515474]
[1757555523245,6.86,225.14,225.06,1.7515474]
[1757555523448,153.05224397,225.15,225.06,1.7515474]
[1757555523449,6.86,225.12,225.06,1.7515474]
[1757555523645,6.86,225.1,225.06,1.7515474]
[1757555523951,6.86,225.14,225.06,1.7515474]
[1757555524140,6.86,225.12,225.06,1.7515474]
[1757555524342,6.86,225.1,225.06,1.7515474]
[1757555524646,6.86,225.14,225.06,1.7515474]
[1757555524941,6.86,225.12,225.06,1.7515474]
[1757555525247,6.86,225.1,225.06,1.7515474]
[1757555525446,6.86,225.14,225.06,1.7515474]
[1757555525643,6.86,225.12,225.06,1.7515474]
[1757555525841,3.34300608,225.11,225.06,1.7515474]
[1757555526045,6.86,225.14,225.06,1.7515474]
[1757555526240,6.86,225.12,225.06,1.7515474]
[1757555526442,6.86,225.1,225.06,1.7515474]
[1757555526640,153.05224397,225.15,225.06,1.7515474]
[1757555526841,17.84218026,225.14,225.06,1.7515474]
[1757555527046,6.86,225.12,225.06,1.7515474]
[1757555527344,3.34313841,225.11,225.06,1.7515474]
[1757555527544,6.86,225.14,225.06,1.7515474]
[1757555527740,6.86,225.12,225.06,1.7515474]
[1757555527941,3.34239771,225.11,225.06,1.7515474]
[1757555528248,6.86,225.14,225.06,1.7515474]
[1757555528447,6.86,225.12,225.06,1.7515474]
[1757555528642,6.86,225.1,225.06,1.7515474]
[1757555528946,6.86,225.14,225.06,1.7515474]
[1757555529147,6.86,225.12,225.06,1.7515474]
[1757555529341,6.86,225.1,225.06,1.7515474]
[1757555529542,6.86,225.06,224.97,1.7515474]
[1757555529849,6.86,225.02,224.93,1.7515474]
[1757555532049,3.34124151,225.01,224.93,1.7515474]
[1757555532248,6.86,225.02,224.93,1.7515474]
[1757555532451,6.86,225.0,224.93,1.7515474]
[1757555534045,6.86,225.0,224.9,2.04530802]
[1757555534247,6.86,224.98,224.91,1.7515474]
[1757555534450,6.86,224.98,224.91,8.6215474]
[1757555534645,9.96022081,225.16,224.9,2.04530802]
[1757555534646,4.89939163,225.09,224.93,1.7515474]
[1757555534850,6.86,225.04,224.97,1.7515474]
[1757555535049,3.34333886,225.03,224.97,8.6215474]
[1757555535746,6.86,225.07,224.99,1.7515474]
[1757555535950,6.86,225.05,224.99,1.7515474]
[1757555536248,6.86,225.09,225.03,8.6215474]
[1757555536449,6.86,225.08,225.04,6.87]
[1757555536646,6.86,225.11,225.03,1.7515474]
[1757555536851,6.86,225.09,225.03,1.7515474]
[1757555537050,6.86,225.07,225.03,1.7515474]
[1757555537354,6.86,225.07,225.03,8.6215474]
[1757555538354,6.86,225.1,225.03,1.7515474]
[1757555538651,6.86,225.08,225.01,1.7515474]
[1757555538851,6.86,225.06,225.01,1.7515474]
[1757555539156,6.86,225.09,225.01,1.7515474]
[1757555539354,6.86,225.07,225.01,1.7515474]
[1757555539552,3.3461273,225.06,225.03,1.7515474]
[1757555539751,6.86,225.11,225.05,1.7515474]
[1757555540047,1.7515474,225.12,225.05,1.7515474]
[1757555540048,10.99383183,225.1,225.05,1.7515474]
[1757555540243,7.06386398,225.09,225.05,1.7515474]
[1757555540446,6.86,225.07,225.05,1.7515474]
[1757555540643,3.34642898,225.06,224.94,8.6]
[1757555540844,3.34642898,225.06,225.04,1.7515474]
[1757555541455,6.86,225.06,225.04,1.7515474]
[1757555541656,6.86,225.11,225.04,1.7515474]
[1757555541852,6.86,225.09,225.04,1.7515474]
[1757555542154,6.86,225.07,225.04,1.7515474]
[1757555542356,3.34716286,225.06,225.04,1.7515474]
[1757555543154,6.86,225.07,225.04,1.7515474]
[1757555543356,3.34809281,225.06,225.04,1.7515474]
[1757555543555,6.86,225.07,225.04,1.7515474]
[1757555543757,3.34853091,225.06,225.04,1.7515474]
[1757555543956,6.86,225.07,225.04,1.7515474]
[1757555544154,3.34853091,225.06,225.04,1.7515474]
[1757555544354,6.86,225.07,225.04,1.7515474]
[1757555544555,10.20841864,225.06,225.04,1.7515474]
[1757555544755,6.86,225.06,225.04,1.7515474]
[1757555546961,7.59,225.11,225.04,1.7515474]
[1757555547260,11.00022435,225.1,225.04,1.7515474]
[1757555547460,7.59,225.08,225.05,7.51]
[1757555547761,3.34832659,225.07,225.05,7.51]
[1757555547962,3.34832659,225.06,225.05,7.51]
[1757555548163,3.34832659,225.06,225.04,9.2615474]
[1757555548359,1.7515474,225.12,225.04,9.2615474]
[1757555548561,18.59114265,225.11,225.04,9.2615474]
[1757555548863,11.00114265,225.1,225.04,9.2615474]
[1757555549057,7.59,225.07,225.04,9.2615474]
[1757555549260,3.34865392,225.06,225.04,9.2615474]
[1757555549457,7.59,225.07,225.04,9.2615474]
[1757555549658,3.34790058,225.06,225.04,9.2615474]
[1757555549858,7.59,225.07,225.04,9.2615474]
[1757555550158,3.34790058,225.06,225.04,9.2615474]
[1757555550358,7.59,225.07,225.04,9.2615474]
[1757555550559,3.34784479,225.06,225.04,9.2615474]
[1757555550760,7.59,225.07,225.04,9.2615474]
[1757555551058,3.34784479,225.06,225.04,9.2615474]
[1757555551260,7.59,225.07,225.04,9.2615474]
[1757555551466,3.34804174,225.06,225.04,9.2615474]
[1757555551760,7.59,225.07,225.04,9.2615474]
[1757555551964,3.34761667,225.06,225.04,9.2615474]
[1757555552162,7.59,225.07,225.04,9.2615474]
[1757555552462,3.34787173,225.06,225.04,9.2615474]
[1757555552663,7.59,225.07,225.04,9.2615474]
[1757555552861,3.34782383,225.06,225.04,9.2615474]
[1757555553163,7.59,225.07,225.04,9.2615474]
[1757555553361,3.34685538,225.06,225.04,9.2615474]
[1757555553554,7.59,225.07,225.04,9.2615474]
[1757555553753,3.34678879,225.06,225.04,9.2615474]
[1757555553953,7.59,225.07,225.04,9.2615474]
[1757555554158,3.34630168,225.06,225.04,7.51]
[1757555554356,7.59,225.07,225.04,7.51]
[1757555554556,3.34596992,225.06,225.04,7.51]
[1757555554756,7.59,225.07,225.04,7.51]
[1757555554955,3.34596275,225.06,225.04,7.51]
[1757555555157,7.59,225.07,225.04,7.51]
[1757555555363,3.3461382,225.06,225.04,7.51]
[1757555555564,7.59,225.07,225.04,7.51]
[1757555555763,3.34607208,225.06,225.04,7.51]
[1757555556064,7.59,225.07,225.04,7.51]
[1757555556263,3.34624542,225.06,225.04,7.51]
[1757555556459,7.59,225.07,225.04,7.51]
[1757555556662,3.34618549,225.06,225.04,7.51]
[1757555556859,7.59,225.06,225.04,7.51]
[1757555557970,7.59,225.11,224.91,7.51]
[1757555558166,7.59,225.09,225.01,1.7515474]
[1757555558371,7.06994398,225.08,225.01,9.2615474]
[1757555558572,3.34607734,225.07,225.03,1.7515474]
[1757555558770,3.34607734,225.06,225.04,7.51]
[1757555558971,1.7515474,225.1,225.04,7.51]
[1757555559168,7.07016014,225.09,225.04,7.51]
[1757555559372,3.34651044,225.08,225.04,7.51]
[1757555559572,10.93651044,225.07,225.04,7.51]
[1757555559768,7.59,225.09,225.04,7.51]
[1757555559968,7.59,225.07,225.04,7.51]
[1757555560273,3.34686322,225.06,225.04,7.51]
[1757555560470,7.59,225.09,225.04,7.51]
[1757555560667,3.34698822,225.08,225.04,7.51]
[1757555560975,7.59,225.06,224.98,1.7515474]
[1757555561177,7.59,225.04,224.96,7.51]
[1757555561470,7.59,225.02,224.96,7.51]
[1757555561673,3.34698822,225.01,224.95,9.2615474]
[1757555561875,7.59,225.02,224.95,9.2615474]
[1757555562069,3.3462907,225.01,224.95,9.2615474]
[1757555562274,7.59,225.02,224.95,9.2615474]
[1757555562476,3.34639776,225.01,224.95,9.2615474]
[1757555562678,7.59,225.02,224.95,7.51]
[1757555562973,3.34633729,225.01,224.95,9.2615474]
[1757555563174,7.59,224.99,224.95,1.7515474]
[1757555563376,7.59,225.03,224.95,1.7515474]
[1757555563675,7.59,225.01,224.95,1.7515474]
[1757555563971,3.34604774,225.0,224.94,1.7515474]
[1757555564175,1.7515474,225.04,224.94,9.2615474]
[1757555564176,7.59,224.98,224.94,9.2615474]
[1757555564379,7.59,225.03,224.94,9.2615474]
[1757555564577,7.59,225.01,224.94,9.2615474]
[1757555564766,3.34554379,225.0,224.94,9.2615474]
[1757555564966,1.7515474,225.03,224.94,9.2615474]
[1757555564967,7.59,224.98,224.94,9.2615474]
[1757555565170,7.59,225.02,224.94,9.2615474]
[1757555565369,7.59,225.0,224.94,9.2615474]
[1757555565570,7.59,224.98,224.94,9.2615474]
[1757555566271,7.59,224.98,224.94,7.51]
[1757555567577,25.70185953,225.06,224.9,9.55530802]
[1757555567776,15.88191221,225.05,224.9,9.55530802]
[1757555567976,7.59,225.03,224.9,9.55530802]
[1757555568177,7.59,225.01,224.9,9.55530802]
[1757555568378,10.98252058,225.0,224.9,9.55530802]
[1757555568673,7.59,224.98,224.9,9.55530802]
[1757555568874,3.34320278,224.97,224.9,9.55530802]
[1757555569074,7.59,225.02,224.9,9.55530802]
[1757555569277,7.59,225.0,224.9,9.55530802]
[1757555569475,7.59,224.98,224.9,9.55530802]
[1757555569671,3.34201925,224.97,224.9,9.55530802]
[1757555569875,3.34201925,224.96,224.9,9.55530802]
[1757555570073,7.59,224.98,224.9,9.55530802]
[1757555570277,7.59,224.96,224.9,9.55530802]
[1757555573275,7.59,225.04,224.92,7.51]
[1757555573481,10.97728177,225.03,224.92,7.51]
[1757555573681,7.05987639,225.02,224.92,7.51]
[1757555573881,7.05987639,225.01,224.92,7.51]
[1757555574082,3.3417973,225.0,224.92,7.51]
[1757555574285,10.9317973,224.99,224.92,7.51]
[1757555574483,7.59,224.99,224.92,7.51]
[1757555575386,21.37,225.05,224.92,7.51]
[1757555575585,7.59,225.03,224.92,7.51]
[1757555575884,10.97620521,225.02,224.92,7.51]
[1757555576086,3.34138299,225.01,224.92,7.51]
[1757555576385,3.34138299,225.0,224.92,7.51]
[1757555576581,7.59,225.03,224.92,7.51]
[1757555576782,7.05916213,225.02,224.92,7.51]
[1757555576976,3.34146445,225.01,224.92,7.51]
[1757555577176,3.34146445,225.0,224.92,7.51]
[1757555577384,7.59,225.03,224.92,7.51]
[1757555577584,7.05912322,225.02,224.92,7.51]
[1757555577783,3.341446,225.01,224.92,7.51]
[1757555577983,3.341446,225.0,224.92,7.51]
[1757555578185,7.59,225.03,224.92,7.51]
[1757555578384,7.05920616,225.02,224.92,7.51]